[Event "FIDE U16 Olympiad_boards_1-80"]
[Site "Eindhoven, Netherlands"]
[Date "2023.08.14"]
[Round "3.55"]
[White "Ajith, Aayush"]
[Black "Vingris, Mikelis"]
[Result "1/2-1/2"]
[TimeControl "2700+10"]
[WhiteElo "1756"]
[BlackElo "2031"]

1. d4 {[%clk 00:45:16]} {[%emt 00:00:03]} d5 {[%clk 00:45:13]} {[%emt
00:00:08]} 2. c4 {[%clk 00:45:23]} {[%emt 00:00:03]} c6 {[%clk 00:45:21]}
{[%emt 00:00:02]} 3. Nc3 {[%clk 00:45:30]} {[%emt 00:00:02]} Nf6 {[%clk
00:45:29]} {[%emt 00:00:02]} 4. Bg5 {[%clk 00:45:08]} {[%emt 00:00:31]} e6
{[%clk 00:45:32]} {[%emt 00:00:09]} 5. e3 {[%clk 00:44:48]} {[%emt 00:00:30]}
Nbd7 {[%clk 00:45:33]} {[%emt 00:00:10]} 6. Nf3 {[%clk 00:44:20]} {[%emt
00:00:36]} Bd6 {[%clk 00:44:19]} {[%emt 00:01:24]} 7. cxd5 {[%clk 00:44:20]}
{[%emt 00:00:10]} cxd5 {[%clk 00:42:49]} {[%emt 00:01:41]} 8. Bd3 {[%clk
00:43:35]} {[%emt 00:00:54]} O-O {[%clk 00:42:12]} {[%emt 00:00:46]} 9. O-O
{[%clk 00:42:28]} {[%emt 00:01:17]} b6 {[%clk 00:41:04]} {[%emt 00:01:20]} 10.
e4 {[%clk 00:35:34]} {[%emt 00:07:04]} dxe4 {[%clk 00:40:20]} {[%emt 00:00:54]}
11. Bxe4 {[%clk 00:35:38]} {[%emt 00:00:05]} Rb8 {[%clk 00:40:10]} {[%emt
00:00:21]} 12. Nb5 {[%clk 00:33:59]} {[%emt 00:01:49]} Be7 {[%clk 00:33:48]}
{[%emt 00:06:32]} 13. Nxa7 {[%clk 00:28:40]} {[%emt 00:05:28]} Nxe4 {[%clk
00:33:14]} {[%emt 00:00:45]} 14. Nc6 {[%clk 00:28:30]} {[%emt 00:00:20]} Nxg5
{[%clk 00:32:23]} {[%emt 00:01:01]} 15. Nxd8 {[%clk 00:28:30]} {[%emt
00:00:10]} Rxd8 {[%clk 00:27:01]} {[%emt 00:05:32]} 16. Nxg5 {[%clk 00:20:50]}
{[%emt 00:07:50]} Bxg5 {[%clk 00:27:07]} {[%emt 00:00:03]} 17. Qg4 {[%clk
00:19:09]} {[%emt 00:01:51]} Be7 {[%clk 00:26:22]} {[%emt 00:00:55]} 18. Rfd1
{[%clk 00:14:01]} {[%emt 00:05:18]} Nf6 {[%clk 00:25:23]} {[%emt 00:01:11]} 19.
Qg3 {[%clk 00:12:52]} {[%emt 00:01:17]} Bd6 {[%clk 00:25:10]} {[%emt 00:00:23]}
20. Qb3 {[%clk 00:12:16]} {[%emt 00:00:46]} Nd5 {[%clk 00:21:48]} {[%emt
00:03:33]} 21. g3 {[%clk 00:10:23]} {[%emt 00:02:03]} Bd7 {[%clk 00:21:15]}
{[%emt 00:00:44]} 22. f4 {[%clk 00:09:14]} {[%emt 00:01:18]} Ra8 {[%clk
00:19:37]} {[%emt 00:01:48]} 23. Rdc1 {[%clk 00:07:19]} {[%emt 00:02:04]} g6
{[%clk 00:19:15]} {[%emt 00:00:33]} 24. a3 {[%clk 00:06:26]} {[%emt 00:01:03]}
b5 {[%clk 00:18:14]} {[%emt 00:01:11]} 25. Re1 {[%clk 00:05:04]} {[%emt
00:01:31]} Ra4 {[%clk 00:18:18]} {[%emt 00:00:07]} 26. Red1 {[%clk 00:03:39]}
{[%emt 00:01:35]} Bc7 {[%clk 00:17:43]} {[%emt 00:00:45]} 27. Rd3 {[%clk
00:02:27]} {[%emt 00:01:22]} Bb6 {[%clk 00:17:45]} {[%emt 00:00:08]} 28. Rad1
{[%clk 00:02:17]} {[%emt 00:00:19]} Rc8 {[%clk 00:17:52]} {[%emt 00:00:03]} 29.
Kg2 {[%clk 00:01:16]} {[%emt 00:01:11]} Rcc4 {[%clk 00:17:33]} {[%emt
00:00:29]} 30. R1d2 {[%clk 00:00:56]} {[%emt 00:00:30]} h5 {[%clk 00:16:30]}
{[%emt 00:01:14]} 31. Qd1 {[%clk 00:00:46]} {[%emt 00:00:20]} Rc7 {[%clk
00:15:20]} {[%emt 00:01:19]} 32. Rc2 {[%clk 00:00:28]} {[%emt 00:00:28]} Rb7
{[%clk 00:10:09]} {[%emt 00:05:22]} 33. Kf2 {[%clk 00:00:19]} {[%emt 00:00:18]}
Rb8 {[%clk 00:08:21]} {[%emt 00:01:58]} 34. Rcd2 {[%clk 00:00:20]} {[%emt
00:00:10]} Rc8 {[%clk 00:08:10]} {[%emt 00:00:21]} 35. Qf3 {[%clk 00:00:20]}
{[%emt 00:00:10]} Ba5 {[%clk 00:07:38]} {[%emt 00:00:42]} 36. b4 {[%clk
00:00:21]} {[%emt 00:00:08]} Bb6 {[%clk 00:07:47]} {[%emt 00:00:02]} 37. g4
{[%clk 00:00:28]} {[%emt 00:00:03]} hxg4 {[%clk 00:07:48]} {[%emt 00:00:09]} 38.
Qxg4 {[%clk 00:00:34]} {[%emt 00:00:03]} Rc4 {[%clk 00:07:07]} {[%emt
00:00:52]} 39. Qh4 {[%clk 00:00:24]} {[%emt 00:00:19]} Ra8 {[%clk 00:07:00]}
{[%emt 00:00:18]} 40. Rh3 {[%clk 00:00:18]} {[%emt 00:00:15]} Kg7 {[%clk
00:06:18]} {[%emt 00:00:52]} 41. Qh6+ {[%clk 00:00:25]} {[%emt 00:00:03]} Kf6
{[%clk 00:06:24]} {[%emt 00:00:04]} 42. Qg5+ {[%clk 00:00:23]} 1/2-1/2

[Event "FIDE U16 Olympiad_boards_1-80"]
[Site "Eindhoven, Netherlands"]
[Date "2023.08.14"]
[Round "3.56"]
[White "Ter-Avetisjana, Agnesa Stepania"]
[Black "Gao, Lucy"]
[Result "1-0"]
[TimeControl "2700+10"]
[WhiteElo "1889"]
[BlackElo "1618"]

1. e4 {[%clk 00:45:19]} c5 {[%clk 00:45:19]} {[%emt 00:00:02]} 2. Nf3 {[%clk
00:45:27]} g6 {[%clk 00:45:24]} {[%emt 00:00:05]} 3. c3 {[%clk 00:45:36]}
{[%emt 00:00:02]} Bg7 {[%clk 00:45:29]} {[%emt 00:00:04]} 4. d4 {[%clk
00:45:44]} {[%emt 00:00:02]} cxd4 {[%clk 00:45:36]} {[%emt 00:00:03]} 5. cxd4
{[%clk 00:45:52]} {[%emt 00:00:01]} d5 {[%clk 00:45:40]} {[%emt 00:00:07]} 6.
e5 {[%clk 00:45:47]} {[%emt 00:00:16]} Nc6 {[%clk 00:45:23]} {[%emt 00:00:27]}
7. Nc3 {[%clk 00:45:49]} {[%emt 00:00:07]} Nh6 {[%clk 00:44:34]} {[%emt
00:00:59]} 8. Bxh6 {[%clk 00:40:04]} {[%emt 00:05:55]} Bxh6 {[%clk 00:44:38]}
{[%emt 00:00:06]} 9. Qb3 {[%clk 00:40:12]} {[%emt 00:00:02]} O-O {[%clk
00:36:52]} {[%emt 00:07:56]} 10. Be2 {[%clk 00:34:09]} {[%emt 00:06:13]} e6
{[%clk 00:28:23]} {[%emt 00:08:38]} 11. O-O {[%clk 00:33:10]} {[%emt 00:01:09]}
f6 {[%clk 00:27:48]} {[%emt 00:00:46]} 12. exf6 {[%clk 00:32:35]} {[%emt
00:00:45]} Qxf6 {[%clk 00:26:02]} {[%emt 00:01:56]} 13. Rad1 {[%clk 00:32:13]}
{[%emt 00:00:32]} b6 {[%clk 00:23:48]} {[%emt 00:02:24]} 14. Bb5 {[%clk
00:27:39]} {[%emt 00:04:44]} Ne7 {[%clk 00:20:46]} {[%emt 00:03:13]} 15. Ne2
{[%clk 00:21:54]} {[%emt 00:05:54]} a6 {[%clk 00:16:25]} {[%emt 00:04:31]} 16.
Bd3 {[%clk 00:21:39]} {[%emt 00:00:26]} b5 {[%clk 00:15:23]} {[%emt 00:01:12]}
17. Ne5 {[%clk 00:21:30]} {[%emt 00:00:19]} Nf5 {[%clk 00:13:49]} {[%emt
00:01:43]} 18. Bxf5 {[%clk 00:20:02]} {[%emt 00:01:38]} gxf5 {[%clk 00:12:21]}
{[%emt 00:01:38]} 19. f4 {[%clk 00:19:59]} {[%emt 00:00:13]} Kh8 {[%clk
00:11:57]} {[%emt 00:00:34]} 20. Rc1 {[%clk 00:19:21]} {[%emt 00:00:48]} Rg8
{[%clk 00:07:45]} {[%emt 00:04:21]} 21. Rc7 {[%clk 00:18:41]} {[%emt 00:00:51]}
Rg7 {[%clk 00:07:01]} {[%emt 00:00:55]} 22. Rfc1 {[%clk 00:18:31]} {[%emt
00:00:19]} Bb7 {[%clk 00:05:12]} {[%emt 00:01:58]} 23. Qh3 {[%clk 00:15:49]}
{[%emt 00:02:53]} Rag8 {[%clk 00:02:54]} {[%emt 00:02:28]} 24. g3 {[%clk
00:14:41]} {[%emt 00:01:18]} Ba8 {[%clk 00:01:56]} {[%emt 00:01:08]} 25. Qh5
{[%clk 00:14:25]} {[%emt 00:00:26]} Rf8 {[%clk 00:01:12]} {[%emt 00:00:55]} 26.
Nd7 {[%clk 00:12:49]} {[%emt 00:01:45]} Rxd7 {[%clk 00:00:48]} {[%emt
00:00:34]} 27. Rxd7 {[%clk 00:12:57]} {[%emt 00:00:03]} Qg6 {[%clk 00:00:52]}
{[%emt 00:00:06]} 28. Qxg6 {[%clk 00:12:58]} {[%emt 00:00:08]} hxg6 {[%clk
00:01:01]} {[%emt 00:00:01]} 29. Rcc7 {[%clk 00:13:07]} {[%emt 00:00:01]} Re8
{[%clk 00:00:39]} {[%emt 00:00:32]} 30. Rh7+ {[%clk 00:13:14]} {[%emt
00:00:03]} Kg8 {[%clk 00:00:48]} {[%emt 00:00:01]} 31. Rxh6 {[%clk 00:13:23]}
{[%emt 00:00:01]} a5 {[%clk 00:00:14]} {[%emt 00:00:44]} 32. Rxg6+ {[%clk
00:13:31]} {[%emt 00:00:02]} Kh8 {[%clk 00:00:23]} 33. Nc3 {[%clk 00:13:25]}
{[%emt 00:00:16]} b4 {[%clk 00:00:26]} {[%emt 00:00:07]} 34. Nb5 {[%clk
00:13:33]} {[%emt 00:00:02]} Rf8 {[%clk 00:00:18]} {[%emt 00:00:18]} 35. Nd6
{[%clk 00:13:41]} {[%emt 00:00:02]} a4 {[%clk 00:00:17]} {[%emt 00:00:11]} 36.
h4 {[%clk 00:13:28]} {[%emt 00:00:23]} b3 {[%clk 00:00:18]} {[%emt 00:00:09]}
37. axb3 {[%clk 00:13:37]} {[%emt 00:00:01]} axb3 {[%clk 00:00:27]} 38. h5
{[%clk 00:13:46]} {[%emt 00:00:01]} e5 {[%clk 00:00:26]} {[%emt 00:00:12]} 39.
Nf7+ {[%clk 00:13:49]} {[%emt 00:00:06]} Rxf7 {[%clk 00:00:17]} {[%emt
00:00:19]} 40. Rxf7 {[%clk 00:13:54]} {[%emt 00:00:05]} exd4 {[%clk 00:00:25]}
41. Rd6 {[%clk 00:13:55]} {[%emt 00:00:09]} Kg8 {[%clk 00:00:31]} {[%emt
00:00:04]} 42. Ra7 {[%clk 00:14:03]} {[%emt 00:00:02]} Bc6 {[%clk 00:00:37]}
{[%emt 00:00:04]} 43. Rd8+ {[%clk 00:14:12]} {[%emt 00:00:02]} Be8 {[%clk
00:00:46]} {[%emt 00:00:02]} 44. Rxe8# {[%emt 00:00:05]} 1-0

[Event "FIDE U16 Olympiad_boards_1-80"]
[Site "Eindhoven, Netherlands"]
[Date "2023.08.14"]
[Round "3.57"]
[White "Manon, Reja Neer"]
[Black "Caceres Benitez, Arturo Eduardo"]
[Result "0-1"]
[TimeControl "2700+10"]
[WhiteElo "2092"]
[BlackElo "2153"]

1. e4 {[%clk 00:45:17]} {[%emt 00:00:03]} c5 {[%clk 00:45:15]} {[%emt
00:00:06]} 2. Nf3 {[%clk 00:45:24]} {[%emt 00:00:02]} Nc6 {[%clk 00:45:23]}
{[%emt 00:00:02]} 3. Bb5 {[%clk 00:45:32]} {[%emt 00:00:03]} g6 {[%clk
00:45:31]} {[%emt 00:00:02]} 4. O-O {[%clk 00:45:39]} {[%emt 00:00:02]} Bg7
{[%clk 00:45:39]} {[%emt 00:00:02]} 5. c3 {[%clk 00:43:41]} {[%emt 00:02:08]}
e5 {[%clk 00:45:40]} {[%emt 00:00:09]} 6. d3 {[%clk 00:39:44]} {[%emt
00:04:09]} Nge7 {[%clk 00:45:46]} {[%emt 00:00:02]} 7. Be3 {[%clk 00:39:35]}
{[%emt 00:00:19]} d6 {[%clk 00:45:22]} {[%emt 00:00:34]} 8. d4 {[%clk
00:35:52]} {[%emt 00:03:54]} exd4 {[%clk 00:45:10]} {[%emt 00:00:22]} 9. cxd4
{[%clk 00:36:00]} {[%emt 00:00:01]} O-O {[%clk 00:44:33]} {[%emt 00:00:47]} 10.
Nc3 {[%clk 00:33:51]} {[%emt 00:02:20]} cxd4 {[%clk 00:40:52]} {[%emt
00:03:51]} 11. Nxd4 {[%clk 00:33:55]} {[%emt 00:00:05]} d5 {[%clk 00:40:52]}
{[%emt 00:00:11]} 12. Bxc6 {[%clk 00:18:08]} {[%emt 00:15:57]} bxc6 {[%clk
00:40:36]} {[%emt 00:00:25]} 13. exd5 {[%clk 00:18:15]} {[%emt 00:00:04]} cxd5
{[%clk 00:40:11]} {[%emt 00:00:34]} 14. Qd2 {[%clk 00:14:51]} {[%emt 00:03:35]}
Re8 {[%clk 00:39:19]} {[%emt 00:01:00]} 15. Rfe1 {[%clk 00:13:34]} {[%emt
00:01:29]} Be6 {[%clk 00:35:34]} {[%emt 00:03:55]} 16. Rac1 {[%clk 00:12:06]}
{[%emt 00:01:38]} Qd7 {[%clk 00:34:50]} {[%emt 00:00:54]} 17. Ncb5 {[%clk
00:10:41]} {[%emt 00:01:36]} Rec8 {[%clk 00:34:22]} {[%emt 00:00:37]} 18. Bf4
{[%clk 00:08:44]} {[%emt 00:02:06]} Rxc1 {[%clk 00:31:23]} {[%emt 00:03:09]} 19.
Rxc1 {[%clk 00:08:51]} {[%emt 00:00:03]} Rc8 {[%clk 00:31:07]} {[%emt
00:00:26]} 20. Rxc8+ {[%clk 00:06:31]} {[%emt 00:02:31]} Nxc8 {[%clk 00:30:21]}
{[%emt 00:00:55]} 21. h3 {[%clk 00:06:05]} {[%emt 00:00:36]} a6 {[%clk
00:29:32]} {[%emt 00:01:00]} 22. Nc7 {[%clk 00:04:42]} {[%emt 00:01:33]} Nd6
{[%clk 00:26:22]} {[%emt 00:03:19]} 23. Ncxe6 {[%clk 00:03:33]} {[%emt
00:01:19]} fxe6 {[%clk 00:26:04]} {[%emt 00:00:28]} 24. Qe3 {[%clk 00:03:43]}
e5 {[%emt 00:02:37]} 25. Qb3 {[%clk 00:02:05]} Ne8 {[%clk 00:24:24]} {[%emt
00:01:10]} 26. Bxe5 {[%clk 00:01:17]} {[%emt 00:01:00]} Bxe5 {[%clk 00:24:29]}
{[%emt 00:00:04]} 27. Nf3 {[%clk 00:01:24]} {[%emt 00:00:02]} Bg7 {[%clk
00:24:33]} {[%emt 00:00:06]} 28. Qb6 {[%clk 00:01:26]} {[%emt 00:00:09]} Qd6
{[%clk 00:23:41]} {[%emt 00:01:01]} 29. Qb7 {[%clk 00:01:13]} {[%emt 00:00:25]}
Qe6 {[%clk 00:23:16]} {[%emt 00:00:33]} 30. Qb3 {[%clk 00:01:02]} {[%emt
00:00:22]} Bf6 {[%clk 00:23:18]} {[%emt 00:00:07]} 31. g4 {[%clk 00:00:57]}
{[%emt 00:00:16]} h6 {[%clk 00:22:25]} {[%emt 00:01:02]} 32. Kg2 {[%clk
00:00:54]} {[%emt 00:00:14]} Kh7 {[%clk 00:22:03]} {[%emt 00:00:31]} 33. a4
{[%clk 00:00:36]} {[%emt 00:00:28]} Bg7 {[%clk 00:21:21]} {[%emt 00:00:52]} 34.
Qb7 {[%clk 00:00:23]} {[%emt 00:00:24]} Nf6 {[%clk 00:20:27]} {[%emt 00:01:03]}
35. b4 {[%clk 00:00:16]} {[%emt 00:00:19]} Nxg4 {[%clk 00:18:42]} {[%emt
00:01:54]} 36. b5 {[%clk 00:00:24]} {[%emt 00:00:02]} Qe4 {[%clk 00:18:19]}
{[%emt 00:00:32]} 37. bxa6 {[%clk 00:00:13]} {[%emt 00:00:22]} Ne5 {[%clk
00:18:21]} {[%emt 00:00:08]} 38. Qb3 {[%clk 00:00:19]} {[%emt 00:00:04]} Nxf3
{[%clk 00:18:04]} {[%emt 00:00:26]} 0-1

[Event "FIDE U16 Olympiad_boards_1-80"]
[Site "Eindhoven, Netherlands"]
[Date "2023.08.14"]
[Round "3.58"]
[White "Jodorcovsky, Alejandro David"]
[Black "Md. Sajidul, Haque"]
[Result "0-1"]
[TimeControl "2700+10"]
[WhiteElo "1633"]
[BlackElo "1993"]

1. e4 {[%clk 00:44:54]} {[%emt 00:00:26]} c6 {[%clk 00:45:17]} {[%emt
00:00:03]} 2. d4 {[%clk 00:45:03]} {[%emt 00:00:01]} d5 {[%clk 00:45:25]}
{[%emt 00:00:02]} 3. exd5 {[%clk 00:45:12]} {[%emt 00:00:02]} cxd5 {[%clk
00:45:33]} {[%emt 00:00:01]} 4. Bd3 {[%clk 00:45:21]} {[%emt 00:00:01]} Nc6
{[%clk 00:45:40]} {[%emt 00:00:02]} 5. c3 {[%clk 00:45:30]} {[%emt 00:00:02]}
Nf6 {[%clk 00:45:48]} {[%emt 00:00:02]} 6. h3 {[%clk 00:45:40]} {[%emt
00:00:01]} e5 {[%clk 00:45:55]} {[%emt 00:00:03]} 7. dxe5 {[%clk 00:45:44]}
{[%emt 00:00:06]} Nxe5 {[%clk 00:46:03]} {[%emt 00:00:02]} 8. Nf3 {[%clk
00:45:53]} {[%emt 00:00:02]} Nxd3+ {[%clk 00:46:08]} {[%emt 00:00:04]} 9. Qxd3
{[%clk 00:46:01]} {[%emt 00:00:02]} Bd6 {[%clk 00:46:07]} {[%emt 00:00:10]} 10.
O-O {[%clk 00:46:03]} {[%emt 00:00:08]} O-O {[%clk 00:46:01]} {[%emt 00:00:16]}
11. Be3 {[%clk 00:45:53]} {[%emt 00:00:21]} Re8 {[%clk 00:44:40]} {[%emt
00:01:31]} 12. Nbd2 {[%clk 00:44:25]} {[%emt 00:01:39]} Bd7 {[%clk 00:42:18]}
{[%emt 00:02:28]} 13. Rad1 {[%clk 00:43:44]} {[%emt 00:00:53]} Qa5 {[%clk
00:39:36]} {[%emt 00:02:51]} 14. Qb1 {[%clk 00:41:31]} {[%emt 00:02:24]} Rad8
{[%clk 00:36:07]} {[%emt 00:03:39]} 15. Nd4 {[%clk 00:39:17]} {[%emt 00:02:25]}
Qa6 {[%clk 00:32:49]} {[%emt 00:03:26]} 16. Bg5 {[%clk 00:38:03]} {[%emt
00:01:26]} Bc7 {[%clk 00:29:43]} {[%emt 00:03:15]} 17. N2f3 {[%clk 00:34:52]}
{[%emt 00:03:22]} h6 {[%clk 00:26:07]} {[%emt 00:03:46]} 18. Be3 {[%clk
00:32:38]} {[%emt 00:02:24]} Ne4 {[%clk 00:25:17]} {[%emt 00:00:59]} 19. Rfe1
{[%clk 00:27:56]} {[%emt 00:04:53]} Qg6 {[%clk 00:24:26]} {[%emt 00:00:59]} 20.
Kf1 {[%clk 00:21:30]} {[%emt 00:06:38]} f5 {[%clk 00:21:53]} {[%emt 00:02:43]}
21. Qc1 {[%clk 00:21:15]} {[%emt 00:00:25]} Qa6+ {[%clk 00:19:41]} {[%emt
00:02:21]} 22. Kg1 {[%clk 00:21:06]} {[%emt 00:00:20]} Qxa2 {[%clk 00:19:39]}
{[%emt 00:00:11]} 23. Nc2 {[%clk 00:12:53]} {[%emt 00:08:23]} Ba4 {[%clk
00:16:45]} {[%emt 00:03:03]} 24. Nb4 {[%clk 00:10:53]} {[%emt 00:02:11]} Qb3
{[%clk 00:16:22]} {[%emt 00:00:32]} 25. Nd4 {[%clk 00:02:47]} {[%emt 00:08:18]}
Qc4 {[%clk 00:16:27]} {[%emt 00:00:04]} 26. Nxf5 {[%clk 00:02:17]} {[%emt
00:00:41]} Bxd1 {[%clk 00:15:12]} {[%emt 00:01:24]} 27. Rxd1 {[%clk 00:02:26]}
{[%emt 00:00:02]} Qe2 {[%clk 00:11:35]} {[%emt 00:03:46]} 28. Nxd5 {[%clk
00:00:19]} {[%emt 00:02:18]} Re5 {[%clk 00:11:37]} {[%emt 00:00:07]} 29. Nde7+
{[%clk 00:00:13]} {[%emt 00:00:17]} Kf7 {[%clk 00:11:05]} {[%emt 00:00:40]} 30.
Re1 {[%clk 00:00:17]} {[%emt 00:00:07]} Qh5 {[%clk 00:08:58]} {[%emt 00:02:17]}
31. Bf4 {[%clk 00:00:13]} {[%emt 00:00:14]} Rxf5 {[%clk 00:08:01]} {[%emt
00:01:07]} 32. Bxc7 {[%clk 00:00:11]} {[%emt 00:00:13]} Rd2 {[%clk 00:06:56]}
{[%emt 00:01:14]} 33. Nxf5 {[%clk 00:00:14]} {[%emt 00:00:08]} Qxf5 {[%clk
00:07:01]} {[%emt 00:00:05]} 34. f3 {[%clk 00:00:11]} {[%emt 00:00:12]} Qc5+
{[%clk 00:06:49]} {[%emt 00:00:22]} 35. Kh1 {[%clk 00:00:16]} {[%emt 00:00:06]}
Nf2+ {[%clk 00:06:50]} {[%emt 00:00:08]} 36. Kg1 {[%clk 00:00:24]} {[%emt
00:00:03]} Nd3+ {[%clk 00:06:56]} {[%emt 00:00:04]} 0-1

[Event "FIDE U16 Olympiad_boards_1-80"]
[Site "Eindhoven, Netherlands"]
[Date "2023.08.14"]
[Round "3.59"]
[White "Sakline Mostafa, Sajid"]
[Black "Caceres Benitez, Fernando Israel"]
[Result "1-0"]
[TimeControl "2700+10"]
[WhiteElo "2087"]
[BlackElo "1772"]

1. d4 {[%clk 00:45:16]} {[%emt 00:00:04]} Nf6 {[%clk 00:45:15]} {[%emt
00:00:06]} 2. c4 {[%clk 00:45:23]} {[%emt 00:00:03]} e6 {[%clk 00:45:22]}
{[%emt 00:00:03]} 3. Nf3 {[%clk 00:45:25]} {[%emt 00:00:08]} d5 {[%clk
00:45:28]} {[%emt 00:00:04]} 4. g3 {[%clk 00:45:34]} {[%emt 00:00:01]} Bb4+
{[%clk 00:45:18]} {[%emt 00:00:19]} 5. Bd2 {[%clk 00:45:35]} {[%emt 00:00:10]}
Be7 {[%clk 00:45:09]} {[%emt 00:00:18]} 6. Bg2 {[%clk 00:45:43]} {[%emt
00:00:02]} O-O {[%clk 00:44:56]} {[%emt 00:00:24]} 7. O-O {[%clk 00:45:49]}
{[%emt 00:00:04]} Nbd7 {[%clk 00:45:00]} {[%emt 00:00:06]} 8. Qc2 {[%clk
00:45:53]} {[%emt 00:00:06]} c6 {[%clk 00:44:38]} {[%emt 00:00:31]} 9. Bf4
{[%clk 00:45:50]} {[%emt 00:00:13]} b6 {[%clk 00:44:17]} {[%emt 00:00:31]} 10.
Nbd2 {[%clk 00:45:29]} {[%emt 00:00:32]} Bb7 {[%clk 00:44:07]} {[%emt
00:00:20]} 11. Rfd1 {[%clk 00:42:58]} {[%emt 00:02:41]} Nh5 {[%clk 00:42:41]}
{[%emt 00:01:34]} 12. Be3 {[%clk 00:42:53]} {[%emt 00:00:17]} f5 {[%clk
00:40:38]} {[%emt 00:02:12]} 13. Nf1 {[%clk 00:41:12]} {[%emt 00:01:51]} f4
{[%clk 00:38:14]} {[%emt 00:02:34]} 14. Bc1 {[%clk 00:39:44]} {[%emt 00:01:38]}
Bd6 {[%clk 00:37:16]} {[%emt 00:01:06]} 15. e4 {[%clk 00:37:35]} {[%emt
00:02:21]} fxg3 {[%clk 00:31:49]} {[%emt 00:05:37]} 16. hxg3 {[%clk 00:37:06]}
{[%emt 00:00:38]} Rc8 {[%clk 00:29:27]} {[%emt 00:02:33]} 17. Ng5 {[%clk
00:36:21]} {[%emt 00:00:55]} e5 {[%clk 00:27:03]} {[%emt 00:02:34]} 18. exd5
{[%clk 00:36:01]} {[%emt 00:00:29]} g6 {[%clk 00:26:26]} {[%emt 00:00:49]} 19.
Ne6 {[%clk 00:35:33]} {[%emt 00:00:38]} Qf6 {[%clk 00:26:26]} {[%emt 00:00:10]}
20. Nxf8 {[%clk 00:35:26]} {[%emt 00:00:16]} Bxf8 {[%clk 00:26:19]} {[%emt
00:00:17]} 21. dxc6 {[%clk 00:35:08]} {[%emt 00:00:27]} Bxc6 {[%clk 00:25:58]}
{[%emt 00:00:32]} 22. d5 {[%clk 00:35:10]} {[%emt 00:00:09]} Bb7 {[%clk
00:24:03]} {[%emt 00:02:02]} 23. Be3 {[%clk 00:34:10]} {[%emt 00:01:11]} b5
{[%clk 00:22:45]} {[%emt 00:01:28]} 24. b3 {[%clk 00:32:41]} {[%emt 00:01:40]}
Ng7 {[%clk 00:22:11]} {[%emt 00:00:44]} 25. Nd2 {[%clk 00:29:27]} {[%emt
00:03:24]} a5 {[%clk 00:21:05]} {[%emt 00:01:17]} 26. Ne4 {[%clk 00:28:40]}
{[%emt 00:00:56]} Qe7 {[%clk 00:20:45]} {[%emt 00:00:30]} 27. c5 {[%clk
00:27:51]} {[%emt 00:01:00]} Nf5 {[%clk 00:20:34]} {[%emt 00:00:21]} 28. c6
{[%clk 00:27:52]} {[%emt 00:00:09]} Ba8 {[%clk 00:20:37]} {[%emt 00:00:06]} 29.
Bg5 {[%clk 00:26:24]} {[%emt 00:01:38]} 1-0

[Event "FIDE U16 Olympiad_boards_1-80"]
[Site "Eindhoven, Netherlands"]
[Date "2023.08.14"]
[Round "3.60"]
[White "Mayeregger Gonzalez, Renata"]
[Black "Wadifa, Ahmed"]
[Result "0-1"]
[TimeControl "2700+10"]
[WhiteElo "1407"]
[BlackElo "1850"]

1. e4 {[%clk 00:45:18]} c5 {[%clk 00:45:17]} {[%emt 00:00:04]} 2. Nc3 {[%clk
00:45:25]} {[%emt 00:00:03]} e6 {[%clk 00:45:24]} {[%emt 00:00:03]} 3. g3
{[%clk 00:45:31]} {[%emt 00:00:04]} d5 {[%clk 00:45:32]} {[%emt 00:00:02]} 4.
exd5 {[%clk 00:45:27]} {[%emt 00:00:14]} exd5 {[%clk 00:45:40]} {[%emt
00:00:02]} 5. d4 {[%clk 00:45:24]} {[%emt 00:00:14]} cxd4 {[%clk 00:45:38]}
{[%emt 00:00:12]} 6. Qxd4 {[%clk 00:45:29]} {[%emt 00:00:05]} Nf6 {[%clk
00:45:45]} {[%emt 00:00:03]} 7. Bg2 {[%clk 00:42:28]} {[%emt 00:03:11]} Nc6
{[%clk 00:45:13]} {[%emt 00:00:42]} 8. Qd3 {[%clk 00:41:46]} {[%emt 00:00:51]}
Be6 {[%clk 00:38:19]} {[%emt 00:07:04]} 9. a3 {[%clk 00:40:36]} {[%emt
00:01:20]} Be7 {[%clk 00:37:48]} {[%emt 00:00:41]} 10. Nge2 {[%clk 00:39:24]}
{[%emt 00:01:22]} Qd7 {[%clk 00:35:21]} {[%emt 00:02:37]} 11. Bf4 {[%clk
00:36:17]} {[%emt 00:03:17]} a6 {[%clk 00:34:44]} {[%emt 00:00:47]} 12. O-O-O
{[%clk 00:35:32]} {[%emt 00:00:54]} Rd8 {[%clk 00:34:21]} {[%emt 00:00:33]} 13.
h3 {[%clk 00:30:04]} {[%emt 00:05:39]} O-O {[%clk 00:28:55]} {[%emt 00:05:35]}
14. Bg5 {[%clk 00:27:55]} {[%emt 00:02:19]} Qc7 {[%clk 00:22:13]} {[%emt
00:06:52]} 15. Bxf6 {[%clk 00:10:18]} {[%emt 00:17:47]} Bxf6 {[%clk 00:22:20]}
{[%emt 00:00:03]} 16. Nf4 {[%clk 00:10:27]} Bg5 {[%clk 00:14:25]} {[%emt
00:08:05]} 17. Nce2 {[%clk 00:06:09]} {[%emt 00:04:29]} Ne5 {[%clk 00:13:57]}
{[%emt 00:00:38]} 18. Qd4 {[%clk 00:03:17]} {[%emt 00:03:02]} Nc4 {[%clk
00:13:18]} {[%emt 00:00:49]} 19. c3 {[%clk 00:01:11]} {[%emt 00:02:16]} Bf6
{[%clk 00:11:56]} {[%emt 00:01:32]} 20. Nxe6 {[%clk 00:01:07]} {[%emt
00:00:14]} fxe6 {[%clk 00:11:59]} {[%emt 00:00:06]} 21. Qg4 {[%clk 00:01:11]}
{[%emt 00:00:06]} Qb6 {[%clk 00:11:48]} {[%emt 00:00:21]} 22. b4 {[%clk
00:00:22]} {[%emt 00:00:59]} Nxa3 {[%clk 00:07:24]} {[%emt 00:04:34]} 23. Nf4
{[%clk 00:00:12]} {[%emt 00:00:20]} Bxc3 {[%clk 00:06:23]} {[%emt 00:01:11]} 24.
Rhf1 {[%clk 00:00:12]} {[%emt 00:00:12]} Qxb4 {[%clk 00:05:14]} {[%emt
00:01:17]} 25. Qxe6+ {[%clk 00:00:20]} {[%emt 00:00:02]} Kh8 {[%clk 00:05:21]}
{[%emt 00:00:04]} 0-1